fUST/lending_fUST_20251023
["ID","MTS","AMOUNT","RATE_DAILY","PERIOD"]
[392143734,1761207054570,-339.399069,0.00032,30]
[392143735,1761207054586,-197.930796,0.00032,30]
[392143736,1761207054601,-151.0,0.00032,7]
[392143737,1761207054615,-151.0,0.00032,7]
[392143738,1761207054630,-1074.163462,0.00032,30]
[392143739,1761207054645,-151.0,0.00032,7]
[392143740,1761207054659,-151.0,0.00032,7]
[392143741,1761207054674,-339.399069,0.00032,30]
[392143742,1761207054689,-151.0,0.00032,30]
[392143743,1761207054703,-151.0,0.00032,7]
[392143744,1761207054717,-151.0,0.00032,7]
[392143745,1761207054731,-151.0,0.00032,7]
[392143746,1761207054747,-151.0,0.00032,30]
[392143747,1761207054761,-197.930796,0.00032,30]
[392143748,1761207054775,-151.0,0.00032,7]
[392143749,1761207054789,-339.399069,0.00032,30]
[392143750,1761207054804,-151.0,0.00032,7]
[392143751,1761207054819,-151.0,0.00032,7]
[392143752,1761207054834,-151.0,0.00032,30]
[392143753,1761207054852,-151.0,0.00032,7]
[392143754,1761207054867,-151.0,0.00032,7]
[392143755,1761207054882,-151.0,0.00032,7]
[392143756,1761207054897,-197.930796,0.00032,30]
[392143757,1761207054911,-151.0,0.00032,7]
[392143758,1761207054926,-151.0,0.00032,7]
[392143759,1761207055020,-151.0,0.00032,7]
[392143760,1761207055030,-232.510304,0.00032,7]
[392143761,1761207055040,-197.930796,0.00032,30]
[392143762,1761207055049,-151.0,0.00032,30]
[392143763,1761207055058,-151.0,0.00032,30]
[392143764,1761207055068,-229.473534,0.00032,30]
[392143765,1761207055077,-151.0,0.00032,30]
[392143766,1761207055087,-151.0,0.00032,30]
[392143767,1761207055095,-151.0,0.00032,30]
[392143768,1761207055105,-240.29402,0.00032,30]
[392143769,1761207055115,-757.548518,0.00032,30]
[392143770,1761207055125,-369.066472,0.00032,30]
[392143771,1761207055135,-757.548518,0.00032,30]
[392143772,1761207055144,-369.066472,0.00032,30]
[392143773,1761207055154,-757.548518,0.00032,30]
[392143774,1761207055164,-369.066472,0.00032,30]
[392143775,1761207055174,-757.548518,0.00032,30]
[392143776,1761207055184,-369.066472,0.00032,30]
[392143777,1761207055194,-160.174814,0.00032,30]
[392143778,1761207055203,-160.174814,0.00032,30]
[392143779,1761207055212,-151.0,0.00032,30]
[392143780,1761207055222,-160.174814,0.00032,30]
[392143781,1761207055231,-151.0,0.00032,30]
[392143782,1761207055240,-160.174814,0.00032,30]
[392143783,1761207055250,-2038.05,0.000323,2]
[392143784,1761207055260,-1001.74,0.000323,7]
[392143785,1761207055270,-932.21609562,0.00032413,2]
[392143786,1761207055280,-152.24,0.00032633,15]
[392143787,1761207055289,-166.0,0.000327,2]
[392143788,1761207055298,-152.24,0.00032733,15]
[392143789,1761207055307,-152.24,0.00032833,15]
[392143790,1761207055316,-500.0,0.00032877,60]
[392143791,1761207055326,-500.0,0.00032877,60]
[392143792,1761207055335,-500.0,0.00032877,60]
[392143793,1761207055344,-500.0,0.00032877,60]
[392143794,1761207055354,-500.0,0.00032877,60]
[392143795,1761207055363,-500.0,0.00032877,60]
[392143796,1761207055373,-500.0,0.00032877,60]
[392143797,1761207055382,-500.0,0.00032877,60]
[392143798,1761207055394,-500.0,0.00032877,60]
[392143799,1761207055403,-500.0,0.00032877,60]
[392143800,1761207055413,-500.0,0.00032877,60]
[392143801,1761207055422,-500.0,0.00032877,60]
[392143802,1761207055432,-500.0,0.00032877,60]
[392143803,1761207055442,-500.0,0.00032877,60]
[392143804,1761207055454,-588.968848,0.00032877,60]
[392143805,1761207055465,-151.0,0.00032877,30]
[392143806,1761207055475,-151.0,0.00032877,30]
[392143807,1761207055484,-151.0,0.00032877,30]
[392143808,1761207055494,-151.0,0.00032877,30]
[392143809,1761207055504,-500.0,0.00032877,30]
[392143810,1761207055515,-28999.0,0.000329,14]
[392143811,1761207055524,-152.24,0.00032933,60]
[392143812,1761207055535,-403.24192968,0.00033,3]
[392143813,1761207055545,-152.24,0.00033033,60]
[392143814,1761207055554,-1152.0,0.00033054,2]
[392143815,1761207055565,-152.24,0.00033133,60]
[392143816,1761207055575,-349.805669,0.00033165,2]
[392143817,1761207055585,-321.066047,0.00033225,2]
[392143818,1761207055594,-230.849831,0.00033225,2]
[392143819,1761207055604,-152.24,0.00033233,60]
[392143820,1761207055615,-152.24,0.00033333,60]
[392143821,1761207055625,-500.0,0.00033425,30]
[392143822,1761207055635,-152.24,0.00033433,60]
[392143823,1761207055645,-321.066047,0.00033475,15]
[392143824,1761207055654,-230.849831,0.00033475,15]
[392143825,1761207055664,-200.73278272,0.00033486,10]
[392143826,1761207055674,-151.0,0.00033487,30]
[392143827,1761207055683,-151.0,0.00033487,30]
[392143828,1761207055693,-151.0,0.00033487,30]
[392143829,1761207055702,-151.0,0.00033487,30]
[392143830,1761207055711,-151.0,0.00033487,30]
[392143831,1761207055722,-2038.05,0.000335,14]
[392143832,1761207055731,-1001.74,0.000335,7]
[392143833,1761207055742,-152.24,0.00033533,60]
[392143834,1761207055752,-230.112,0.00033587,2]
[392143835,1761207055761,-287.487,0.00033587,2]
[392143836,1761207055771,-632.0,0.00033587,2]
[392143837,1761207055781,-983.0,0.00033587,2]
[392143838,1761207055790,-2165.0,0.00033587,2]
[392143839,1761207055800,-10332.12632236,0.00033616,2]
[392143840,1761207055807,-152.24,0.00033633,60]
[392143841,1761207055817,-4609.0,0.00033665,3]
[392143842,1761207055826,-152.24,0.00033733,60]
[392143843,1761207055835,-200.206598,0.000338,30]
[392143844,1761207055845,-200.206598,0.000338,30]
[392143845,1761207055858,-200.206598,0.000338,30]
[392143847,1761207055867,-200.206598,0.000338,30]
[392143848,1761207055877,-151.0,0.000338,30]
[392143849,1761207055886,-151.0,0.000338,30]
[392143850,1761207055897,-151.0,0.000338,30]
[392143851,1761207055907,-151.0,0.000338,30]
[392143852,1761207055916,-151.0,0.000338,30]
[392143853,1761207055927,-152.24,0.00033833,60]
[392143854,1761207055937,-740.58824094,0.00033886,120]
[392143855,1761207055946,-152.24,0.00033933,60]
[392143856,1761207055955,-1000.0,0.00033938,30]
[392143857,1761207055965,-500.0,0.00033973,30]
[392143858,1761207055974,-152.27289081,0.00034033,60]
[392143859,1761207055984,-1504.903919,0.000343,18]
[392143860,1761207055994,-28999.0,0.000343,14]
[392143861,1761207056004,-200.0,0.00034508,120]
[392143862,1761207056013,-500.0,0.00034521,30]
[392143863,1761207056023,-800.0,0.0003453,2]
[392143864,1761207056033,-1000.0,0.000348,18]
[392143865,1761207056042,-254.09190425,0.00034927,2]
[392143866,1761207056052,-290.39074772,0.00034927,2]
[392143867,1761207056061,-453.73554331,0.00034927,2]
[392143868,1761207056071,-333.38029797,0.00034927,2]
[392143869,1761207056081,-381.00605483,0.00034927,2]
[392143870,1761207056090,-595.32196067,0.00034927,2]
[392143871,1761207056100,-800.0,0.00034971,2]
[392143872,1761207056110,-500000.0,0.00035,2]
[392143873,1761207056119,-1000.0,0.00035,2]
[392143874,1761207056129,-151.0,0.00035,30]
[392143875,1761207056138,-151.0,0.00035,30]
[392143876,1761207056148,-192.799843,0.00035,30]
[392143877,1761207056157,-192.799843,0.00035,30]
[392143878,1761207056167,-192.799843,0.00035,30]
[392143879,1761207056176,-192.799843,0.00035,30]
[392143880,1761207056185,-192.931752,0.00035,30]
[392143881,1761207056195,-213.037521,0.00035,30]
[392143882,1761207056204,-192.931752,0.00035,30]
[392143883,1761207056214,-213.037521,0.00035,30]
[392143884,1761207056283,-192.931752,0.00035,30]
[392143885,1761207056295,-213.037521,0.00035,30]
[392143886,1761207056306,-192.931752,0.00035,30]
[392143887,1761207056316,-213.037521,0.00035,30]
[392143888,1761207056326,-221.095218,0.00035,30]
[392143889,1761207056340,-221.095218,0.00035,30]
[392143890,1761207056354,-221.095218,0.00035,30]
[392143891,1761207056363,-221.095218,0.00035,30]
[392143892,1761207056372,-151.0,0.00035,30]
[392143893,1761207056382,-151.0,0.00035,30]
[392143894,1761207056391,-185.857397,0.00035,30]
[392143895,1761207056400,-152.02024,0.00035,30]
[392143896,1761207056409,-152.02024,0.00035,30]
[392143897,1761207056419,-151.0,0.00035,30]
[392143898,1761207056428,-151.0,0.00035,30]
[392143899,1761207056438,-152.02024,0.00035,30]
[392143900,1761207056448,-166.507118,0.00035,30]
[392143901,1761207056458,-152.02024,0.00035,30]
[392143902,1761207056467,-2038.05,0.00035,14]
[392143903,1761207056477,-1001.74,0.00035,7]
[392143904,1761207056487,-200.206598,0.00035,30]
[392143905,1761207056497,-200.206598,0.00035,30]
[392143906,1761207056507,-200.206598,0.00035,30]
[392143907,1761207056516,-200.206598,0.00035,30]
[392143908,1761207056526,-151.0,0.00035,30]
[392143909,1761207056535,-151.0,0.00035,30]
[392143910,1761207056544,-151.0,0.00035,30]
[392143911,1761207056555,-151.0,0.00035,30]
[392143912,1761207056564,-151.0,0.00035,30]
[392143913,1761207056574,-151.0,0.00035,30]
[392143914,1761207056583,-151.0,0.00035,30]
[392143915,1761207056592,-151.0,0.00035,30]
[392143916,1761207056602,-151.0,0.00035,30]
[392143917,1761207056612,-151.0,0.00035,30]
[392143918,1761207056621,-151.0,0.00035,30]
[392143919,1761207056630,-151.0,0.00035,30]
[392143920,1761207056640,-151.0,0.00035,30]
[392143921,1761207056650,-172.21837372,0.00035,30]
[392143922,1761207056659,-151.0,0.00035,30]
[392143923,1761207056669,-151.0,0.00035,30]
[392143924,1761207056678,-151.0,0.00035,30]
[392143925,1761207056687,-151.0,0.00035,30]
[392143926,1761207056696,-151.0,0.00035,30]
[392143927,1761207056706,-165.268476,0.00035,30]
[392143928,1761207056715,-230.555605,0.00035,30]
[392143929,1761207056724,-556.946399,0.00035,30]
[392143930,1761207056733,-230.555605,0.00035,30]
[392143931,1761207056742,-556.946399,0.00035,30]
[392143932,1761207056751,-230.555605,0.00035,30]
[392143933,1761207056761,-556.946399,0.00035,30]
[392143934,1761207056771,-230.555605,0.00035,30]
[392143935,1761207056782,-556.946399,0.00035,30]
[392143936,1761207056791,-198.084585,0.00035,30]
[392143937,1761207056801,-593.038995,0.00035,30]
[392143938,1761207056810,-198.084585,0.00035,30]
[392143939,1761207056820,-593.038995,0.00035,30]
[392143940,1761207056829,-593.038995,0.00035,30]
[392143941,1761207056838,-198.084585,0.00035,30]
[392143942,1761207056848,-593.038995,0.00035,30]
[392143943,1761207056858,-198.084585,0.00035,30]
[392143944,1761207056868,-151.0,0.00035,30]
[392143945,1761207056878,-334.203803,0.00035,30]
[392143946,1761207056887,-151.0,0.00035,30]
[392143947,1761207056897,-151.0,0.00035,30]
[392143948,1761207056906,-334.203803,0.00035,30]
[392143949,1761207056916,-151.0,0.00035,30]
[392143950,1761207056925,-334.203803,0.00035,30]
[392143951,1761207056934,-151.0,0.00035,30]
[392143952,1761207056944,-151.0,0.00035,30]
[392143953,1761207056953,-151.0,0.00035,30]
[392143954,1761207056962,-334.203803,0.00035,30]
[392143955,1761207056971,-151.0,0.00035,30]
[392143956,1761207056980,-269.504065,0.00035,30]
[392143957,1761207056990,-151.0,0.00035,30]
[392143958,1761207057000,-151.0,0.00035,30]
[392143959,1761207057009,-151.0,0.00035,30]
[392143960,1761207057019,-151.0,0.00035,30]
[392143961,1761207057029,-227.176537,0.00035,30]
[392143962,1761207057038,-151.0,0.00035,30]
[392143963,1761207057047,-151.0,0.00035,30]
[392143964,1761207057057,-227.176537,0.00035,30]
[392143965,1761207057066,-227.176537,0.00035,30]
[392143966,1761207057075,-227.176537,0.00035,30]
[392143967,1761207057084,-434.565962,0.00035,7]
[392143968,1761207057093,-434.565962,0.00035,7]
[392143969,1761207057103,-434.565962,0.00035,7]
[392143970,1761207057113,-434.565962,0.00035,7]
[392143971,1761207057123,-151.0,0.00035,30]
[392143972,1761207057133,-151.0,0.00035,30]
[392143973,1761207057142,-151.0,0.00035,30]
[392143974,1761207057152,-151.0,0.00035,30]
[392143975,1761207057162,-151.0,0.00035,30]
[392143976,1761207057172,-379.567472,0.00035,15]
[392143977,1761207057182,-151.0,0.00035,30]
[392143978,1761207057193,-151.0,0.00035,30]
[392143979,1761207057202,-379.567472,0.00035,15]
[392143980,1761207057213,-151.0,0.00035,30]
[392143981,1761207057222,-379.567472,0.00035,15]
[392143982,1761207057232,-151.0,0.00035,30]
[392143983,1761207057242,-379.567472,0.00035,15]
[392143984,1761207057251,-427.313742,0.00035,30]
[392143985,1761207057261,-1327.460076,0.00035,30]
[392143986,1761207057271,-427.313742,0.00035,30]
[392143987,1761207057281,-1327.460076,0.00035,30]
[392143988,1761207057290,-427.313742,0.00035,30]
[392143989,1761207057300,-1327.460076,0.00035,30]
[392143990,1761207057309,-427.313742,0.00035,30]
[392143991,1761207057319,-1327.460076,0.00035,30]
[392143992,1761207057329,-166.180347,0.00035,30]
[392143993,1761207057339,-502.462057,0.00035,30]
[392143994,1761207057350,-166.180347,0.00035,30]
[392143995,1761207057361,-502.462057,0.00035,30]
[392143996,1761207057371,-166.180347,0.00035,30]
[392143997,1761207057381,-502.462057,0.00035,30]
[392143998,1761207057390,-166.180347,0.00035,30]
[392143999,1761207057456,-151.0,0.00035,30]
[392144000,1761207057467,-502.462057,0.00035,30]
[392144001,1761207057478,-151.0,0.00035,30]
[392144002,1761207057490,-364.276191,0.00035,30]
[392144003,1761207057501,-280.735566,0.00035,30]
[392144004,1761207057511,-151.0,0.00035,30]
[392144005,1761207057522,-364.276191,0.00035,30]
[392144006,1761207057532,-151.0,0.00035,30]
[392144007,1761207057543,-364.276191,0.00035,30]
[392144008,1761207057553,-280.735566,0.00035,30]
[392144009,1761207057563,-364.276191,0.00035,30]
[392144010,1761207057573,-277.61366,0.00035,30]
[392144011,1761207057583,-280.735566,0.00035,30]
[392144012,1761207057593,-280.735566,0.00035,30]
[392144013,1761207057603,-223.832478,0.00035,30]
[392144014,1761207057613,-223.832478,0.00035,30]
[392144015,1761207057623,-223.832478,0.00035,30]
[392144016,1761207057633,-223.832478,0.00035,30]
[392144017,1761207057643,-348.959647,0.00035,30]
[392144018,1761207057652,-151.0,0.00035,30]
[392144019,1761207057662,-348.959647,0.00035,30]
[392144020,1761207057672,-348.959647,0.00035,30]
[392144021,1761207057682,-200.255539,0.00035,30]
[392144022,1761207057691,-209.684042,0.00035,30]
[392144023,1761207057702,-209.684042,0.00035,30]
[392144024,1761207057712,-348.959647,0.00035,30]
[392144025,1761207057722,-200.255539,0.00035,30]
[392144026,1761207057731,-513.319864,0.00035,30]
[392144027,1761207057741,-209.684042,0.00035,30]
[392144028,1761207057751,-200.255539,0.00035,30]
[392144029,1761207057761,-209.684042,0.00035,30]
[392144030,1761207057771,-200.255539,0.00035,30]
[392144031,1761207057782,-513.319864,0.00035,30]
[392144032,1761207057792,-513.319864,0.00035,30]
[392144033,1761207057802,-513.319864,0.00035,30]
[392144034,1761207057812,-151.0,0.00035,30]
[392144035,1761207057824,-151.0,0.00035,30]
[392144036,1761207057834,-151.0,0.00035,30]
[392144037,1761207057844,-182.155532,0.00035,30]
[392144038,1761207057856,-151.0,0.00035,30]
[392144039,1761207057866,-151.0,0.00035,30]
[392144040,1761207057875,-151.0,0.00035,30]
[392144041,1761207057884,-151.0,0.00035,30]
[392144042,1761207057895,-181.618593,0.00035,30]
[392144043,1761207057906,-151.0,0.00035,30]
[392144044,1761207057917,-155.492935,0.00035,30]
[392144045,1761207057927,-151.0,0.00035,30]
[392144046,1761207057937,-166.719209,0.00035,2]
[392144047,1761207057948,-151.0,0.00035,30]
[392144048,1761207057958,-166.719209,0.00035,2]
[392144049,1761207057968,-166.719209,0.00035,2]
[392144050,1761207057978,-236.476012,0.00035,30]
[392144051,1761207057988,-166.719209,0.00035,2]
[392144052,1761207057997,-236.476012,0.00035,30]
[392144053,1761207058007,-236.476012,0.00035,30]
[392144054,1761207058017,-236.476012,0.00035,30]
[392144055,1761207058027,-151.0,0.00035,30]
[392144056,1761207058037,-1016.850283,0.00035,30]
[392144057,1761207058047,-151.0,0.00035,30]
[392144058,1761207058058,-1016.850283,0.00035,30]
[392144059,1761207058068,-151.0,0.00035,30]
[392144060,1761207058078,-10000.0,0.00035,30]
[392144061,1761207058087,-1016.850283,0.00035,30]
[392144062,1761207058097,-10000.0,0.00035,30]
[392144063,1761207058107,-1016.850283,0.00035,30]
[392144064,1761207058117,-10000.0,0.00035,30]
[392144065,1761207058126,-10000.0,0.00035,30]
[392144066,1761207058136,-10000.0,0.00035,30]
[392144067,1761207058146,-151.0,0.00035,30]
[392144068,1761207058156,-10000.0,0.00035,30]
[392144069,1761207058166,-160.402576,0.00035,30]
[392144070,1761207058176,-160.402576,0.00035,30]
[392144071,1761207058186,-160.402576,0.00035,30]
[392144072,1761207058196,-677.415532,0.00035,30]
[392144073,1761207058206,-160.402576,0.00035,30]
[392144074,1761207058215,-151.0,0.00035,30]
[392144075,1761207058225,-677.415532,0.00035,30]
[392144076,1761207058235,-677.415532,0.00035,30]
[392144077,1761207058245,-677.415532,0.00035,30]
[392144078,1761207058255,-151.0,0.00035,30]
[392144079,1761207058265,-151.0,0.00035,30]
[392144080,1761207058274,-151.0,0.00035,30]
[392144081,1761207058284,-238.245485,0.00035,30]
[392144082,1761207058293,-1227.611089,0.00035,30]
[392144083,1761207058303,-1638.8963,0.00035,30]
[392144084,1761207058313,-1638.8963,0.00035,30]
[392144085,1761207058324,-1638.8963,0.00035,30]
[392144086,1761207058334,-1638.8963,0.00035,30]
[392144087,1761207058343,-151.0,0.00035,30]
[392144088,1761207058354,-151.0,0.00035,30]
[392144089,1761207058363,-219.186246,0.00035,30]
[392144090,1761207058372,-219.186246,0.00035,30]
[392144091,1761207058384,-151.0,0.00035,30]
[392144092,1761207058394,-219.186246,0.00035,30]
[392144093,1761207058404,-219.186246,0.00035,30]
[392144094,1761207058414,-158.760749,0.00035,30]
[392144095,1761207058424,-151.0,0.00035,30]
[392144096,1761207058434,-151.0,0.00035,30]
[392144097,1761207058443,-151.0,0.00035,30]
[392144098,1761207058453,-655.404973,0.00035,30]
[392144099,1761207058464,-655.404973,0.00035,30]
[392144100,1761207058473,-151.0,0.00035,30]
[392144101,1761207058483,-655.404973,0.00035,30]
[392144102,1761207058492,-151.0,0.00035,30]
[392144103,1761207058502,-151.0,0.00035,30]
[392144104,1761207058511,-151.0,0.00035,30]
[392144105,1761207058577,-655.404973,0.00035,30]
[392144106,1761207058587,-151.0,0.00035,30]
[392144107,1761207058596,-237.670546,0.00035,30]
[392144108,1761207058605,-151.0,0.00035,30]
[392144109,1761207058615,-151.0,0.00035,30]
[392144110,1761207058625,-237.670546,0.00035,30]
[392144111,1761207058635,-151.0,0.00035,30]
[392144112,1761207058644,-151.0,0.00035,2]
[392144113,1761207058654,-971.890941,0.00035,30]
[392144114,1761207058664,-237.670546,0.00035,30]
[392144115,1761207058673,-156.507469,0.00035,30]
[392144116,1761207058683,-971.890941,0.00035,30]
[392144117,1761207058693,-151.0,0.00035,30]
[392144118,1761207058703,-237.670546,0.00035,30]
[392144119,1761207058712,-971.890941,0.00035,30]
[392144120,1761207058722,-971.890941,0.00035,30]
[392144121,1761207058732,-700.340436,0.00035,30]
[392144122,1761207058742,-700.340436,0.00035,30]
[392144123,1761207058751,-700.340436,0.00035,30]
[392144124,1761207058761,-700.340436,0.00035,30]
[392144125,1761207058770,-393.438978,0.00035,30]
[392144126,1761207058780,-393.438978,0.00035,30]
[392144127,1761207058789,-183.198921,0.00035,30]
[392144128,1761207058799,-393.438978,0.00035,30]
[392144129,1761207058808,-151.0,0.00035,30]
[392144130,1761207058818,-183.198921,0.00035,30]
[392144131,1761207058827,-393.438978,0.00035,30]
[392144132,1761207058838,-151.0,0.00035,30]
[392144133,1761207058849,-183.198921,0.00035,30]
[392144134,1761207058863,-151.0,0.00035,30]
[392144135,1761207058872,-183.198921,0.00035,30]
[392144136,1761207058881,-1074.163462,0.00035,30]
[392144137,1761207058889,-1074.163462,0.00035,30]
[392144138,1761207058900,-339.399069,0.00035,30]
[392144139,1761207058911,-1074.163462,0.00035,30]
[392144140,1761207058922,-339.399069,0.00035,30]
[392144141,1761207058935,-197.930796,0.00035,30]
[392144142,1761207058945,-1074.163462,0.00035,30]
[392144143,1761207058956,-339.399069,0.00035,30]
[392144144,1761207058967,-151.0,0.00035,30]
[392144145,1761207058978,-151.0,0.00035,30]
[392144146,1761207058989,-197.930796,0.00035,30]
[392144147,1761207058999,-339.399069,0.00035,30]
[392144148,1761207059009,-197.930796,0.00035,30]
[392144149,1761207059019,-197.930796,0.00035,30]
[392144150,1761207059029,-151.0,0.00035,30]
[392144151,1761207059040,-151.0,0.00035,30]
[392144152,1761207059051,-151.0,0.00035,30]
[392144153,1761207059061,-151.0,0.00035,30]
[392144154,1761207059072,-151.0,0.00035,30]
[392144155,1761207059082,-757.548518,0.00035,30]
[392144156,1761207059091,-369.066472,0.00035,30]
[392144157,1761207059101,-757.548518,0.00035,30]
[392144158,1761207059112,-369.066472,0.00035,30]
[392144159,1761207059122,-757.548518,0.00035,30]
[392144160,1761207059131,-369.066472,0.00035,30]
[392144161,1761207059141,-757.548518,0.00035,30]
[392144162,1761207059150,-369.066472,0.00035,30]
[392144163,1761207059160,-160.174814,0.00035,30]
[392144164,1761207059169,-160.174814,0.00035,30]
[392144165,1761207059179,-151.0,0.00035,30]
[392144166,1761207059188,-160.174814,0.00035,30]
[392144167,1761207059197,-257.540797,0.00035,30]
[392144168,1761207059207,-160.174814,0.00035,30]
[392144169,1761207059217,-198.44149,0.00035,30]
[392144170,1761207059227,-171.0,0.00035,33]
[392144171,1761207059236,-172.7,0.00035,33]
[392144172,1761207059246,-800.0,0.00035038,2]
[392144173,1761207059255,-345.45211741,0.00035056,2]
[392144174,1761207059265,-500.0,0.00035068,30]
[392144175,1761207059274,-932.21609562,0.0003526,2]
[392144176,1761207059284,-28486.3929732,0.00035264,2]
[392144177,1761207059294,-185.5968617,0.00035264,2]
[392144178,1761207059303,-9858.3592468,0.00035264,2]
[392144179,1761207059312,-1082.949253,0.00035264,2]
[392144180,1761207059322,-22184.6950742,0.00035264,2]
[392144181,1761207059332,-1000.0,0.000353,2]
[392144182,1761207059341,-1000.0,0.000353,18]
[392144183,1761207059352,-830.74989016,0.00035317,30]
[392144184,1761207059362,-500.0,0.00035373,30]
[392144185,1761207059372,-500.0,0.00035373,2]
[392144186,1761207059383,-500.0,0.00035373,15]
[392144187,1761207059393,-250.0,0.000354,10]
[392144188,1761207059403,-500.0,0.00035467,13]
[392144189,1761207059413,-500.0,0.00035467,13]
[392144190,1761207059424,-151.0,0.0003549,30]
[392144191,1761207059434,-151.0,0.0003549,30]
[392144192,1761207059444,-192.799843,0.00035494,30]
[392144193,1761207059454,-192.799843,0.00035494,30]
[392144194,1761207059464,-192.799843,0.00035494,30]
[392144195,1761207059473,-192.799843,0.00035494,30]
[392144196,1761207059483,-192.931752,0.00035494,30]
[392144197,1761207059494,-213.037521,0.00035494,30]
[392144198,1761207059504,-192.931752,0.00035494,30]
[392144199,1761207059514,-213.037521,0.00035494,30]
[392144200,1761207059524,-192.931752,0.00035494,30]
[392144201,1761207059534,-213.037521,0.00035494,30]
[392144202,1761207059596,-192.931752,0.00035494,30]
[392144203,1761207059607,-213.037521,0.00035494,30]
[392144204,1761207059616,-221.095218,0.00035494,30]
[392144205,1761207059627,-221.095218,0.00035494,30]
[392144206,1761207059636,-221.095218,0.00035494,30]
[392144207,1761207059645,-221.095218,0.00035494,30]
[392144208,1761207059655,-151.0,0.00035494,30]
[392144209,1761207059665,-151.0,0.00035494,30]
[392144210,1761207059674,-152.02024,0.00035494,30]
[392144211,1761207059683,-152.02024,0.00035494,30]
[392144212,1761207059692,-151.0,0.00035494,30]
[392144213,1761207059702,-151.0,0.00035494,30]
[392144214,1761207059712,-152.02024,0.00035494,30]
[392144215,1761207059722,-152.02024,0.00035494,30]
[392144216,1761207059731,-200.206598,0.00035494,30]
[392144217,1761207059741,-200.206598,0.00035494,30]
[392144218,1761207059751,-200.206598,0.00035494,30]
[392144219,1761207059761,-200.206589,0.00035494,30]
[392144220,1761207059771,-151.0,0.00035494,30]
[392144221,1761207059781,-151.0,0.00035494,30]
[392144222,1761207059791,-156.301719,0.00035494,30]
[392144223,1761207059800,-151.0,0.00035494,30]
[392144224,1761207059810,-151.0,0.00035498,30]
[392144225,1761207059820,-151.0,0.00035498,30]
[392144226,1761207059829,-151.0,0.00035498,30]
[392144227,1761207059838,-151.0,0.00035498,30]
[392144228,1761207059847,-151.0,0.00035498,30]
[392144229,1761207059857,-177.991921,0.00035498,30]
[392144230,1761207059869,-151.0,0.00035498,30]
[392144231,1761207059879,-151.0,0.00035498,30]
[392144232,1761207059889,-151.0,0.00035498,30]
[392144233,1761207059898,-151.0,0.00035498,30]
[392144234,1761207059908,-151.0,0.00035498,30]